[Event "Polofinale MCR junioru 2023"]
[Site "Czech Republic"]
[Date "2023.11.13"]
[Round "3.7"]
[White "Soucek, Petr"]
[Black "Rousek, Jan"]
[Result "1-0"]
[TimeControl "90 min per 40 moves + 15 min + 30 sec / move from move 1"]
[WhiteFideId "23715170"]
[BlackFideId "386669"]
[WhiteElo "2227"]
[BlackElo "2006"]

1. e4 {[%clk 01:30:51]} {[%emt 00:00:09]} c5 {[%clk 01:29:55]} {[%emt
00:01:05]} 2. Nf3 {[%clk 01:31:15]} {[%emt 00:00:06]} e6 {[%clk 01:29:35]}
{[%emt 00:00:50]} 3. c4 {[%clk 01:31:40]} {[%emt 00:00:05]} Nc6 {[%clk
01:28:38]} {[%emt 00:01:26]} 4. d4 {[%clk 01:32:02]} {[%emt 00:00:09]} cxd4
{[%clk 01:28:38]} {[%emt 00:00:28]} 5. Nxd4 {[%clk 01:32:28]} {[%emt 00:00:07]}
Nf6 {[%clk 01:27:26]} {[%emt 00:01:40]} 6. Nc3 {[%clk 01:32:54]} {[%emt
00:00:05]} Bb4 {[%clk 01:26:36]} {[%emt 00:01:19]} 7. Nxc6 {[%clk 01:33:18]}
{[%emt 00:00:06]} bxc6 {[%clk 01:26:44]} {[%emt 00:00:22]} 8. Bd3 {[%clk
01:33:45]} {[%emt 00:00:05]} e5 {[%clk 01:20:22]} {[%emt 00:06:50]} 9. O-O
{[%clk 01:34:07]} {[%emt 00:00:09]} O-O {[%clk 01:19:37]} {[%emt 00:01:16]} 10.
Qe2 {[%clk 01:34:25]} {[%emt 00:00:12]} Qe7 {[%clk 01:14:12]} {[%emt 00:05:53]}
11. Na4 {[%clk 01:32:38]} {[%emt 00:02:19]} Rd8 {[%clk 00:59:05]} {[%emt
00:15:31]} 12. a3 {[%clk 01:30:27]} {[%emt 00:02:46]} Bc5 {[%clk 00:57:55]}
{[%emt 00:01:39]} 13. Nxc5 {[%clk 01:29:40]} {[%emt 00:01:18]} Qxc5 {[%clk
00:58:16]} {[%emt 00:00:08]} 14. Be3 {[%clk 01:10:56]} {[%emt 00:19:15]} Qe7
{[%clk 00:57:40]} {[%emt 00:01:05]} 15. c5 {[%clk 01:10:20]} {[%emt 00:01:06]}
d5 {[%clk 00:41:13]} {[%emt 00:16:56]} 16. cxd6 {[%clk 01:08:28]} {[%emt
00:02:23]} Qxd6 {[%clk 00:41:35]} {[%emt 00:00:08]} 17. Rfd1 {[%clk 01:07:52]}
{[%emt 00:01:07]} Qe7 {[%clk 00:39:19]} {[%emt 00:02:45]} 18. Rac1 {[%clk
01:07:44]} {[%emt 00:00:39]} Bb7 {[%clk 00:39:08]} {[%emt 00:00:40]} 19. Bc5
{[%clk 01:02:10]} {[%emt 00:06:06]} Qe8 {[%clk 00:35:16]} {[%emt 00:04:21]} 20.
Bc4 {[%clk 00:58:45]} {[%emt 00:03:56]} Nd7 {[%clk 00:26:56]} {[%emt 00:08:48]}
21. Bd6 {[%clk 00:55:14]} {[%emt 00:04:02]} Nb6 {[%clk 00:26:56]} {[%emt
00:00:29]} 22. Bb3 {[%clk 00:53:17]} {[%emt 00:02:27]} Nd5 {[%clk 00:25:13]}
{[%emt 00:02:13]} 23. Bxd5 {[%clk 00:42:09]} {[%emt 00:11:39]} cxd5 {[%clk
00:25:26]} {[%emt 00:00:17]} 24. Bc7 {[%clk 00:42:25]} {[%emt 00:00:15]} Rdc8
{[%clk 00:19:41]} {[%emt 00:06:14]} 25. exd5 {[%clk 00:40:47]} {[%emt
00:02:08]} Qd7 {[%clk 00:15:04]} {[%emt 00:05:07]} 26. Qxe5 {[%clk 00:37:19]}
{[%emt 00:03:58]} Re8 {[%clk 00:15:23]} {[%emt 00:00:10]} 27. Qg3 {[%clk
00:36:00]} {[%emt 00:01:50]} Rac8 {[%clk 00:07:22]} {[%emt 00:08:23]} 28. Be5
{[%clk 00:32:06]} {[%emt 00:04:32]} f5 {[%clk 00:06:09]} {[%emt 00:01:42]} 29.
d6 {[%clk 00:29:57]} {[%emt 00:02:40]} Rxc1 {[%clk 00:02:24]} {[%emt 00:04:15]}
30. Rxc1 {[%clk 00:30:23]} {[%emt 00:00:04]} Rc8 {[%clk 00:02:40]} {[%emt
00:00:14]} 31. Bc3 {[%clk 00:28:20]} {[%emt 00:02:34]} Re8 {[%clk 00:01:30]}
{[%emt 00:01:38]} 32. h3 {[%clk 00:27:42]} {[%emt 00:01:09]} Re6 {[%clk
00:01:22]} {[%emt 00:00:38]} 33. Bxg7 {[%clk 00:18:54]} {[%emt 00:09:18]} Rg6
{[%clk 00:00:32]} {[%emt 00:01:19]} 34. Qb3+ {[%clk 00:19:09]} {[%emt
00:00:15]} Re6 {[%clk 00:00:35]} {[%emt 00:00:27]} 35. Be5 {[%clk 00:19:17]}
{[%emt 00:00:23]} 1-0

[Event "Polofinale MCR junioru 2023"]
[Site "Czech Republic"]
[Date "2023.11.13"]
[Round "3.8"]
[White "Bokhnak, Timofey"]
[Black "Zezula, Jakub"]
[Result "1-0"]
[TimeControl "90 min per 40 moves + 15 min + 30 sec / move from move 1"]
[WhiteFideId "14172976"]
[BlackFideId "23723203"]
[WhiteElo "2210"]
[BlackElo "2002"]

1. e4 {[%clk 01:30:49]} {[%emt 00:00:10]} e5 {[%clk 01:30:52]} {[%emt
00:00:09]} 2. Nc3 {[%clk 01:31:06]} {[%emt 00:00:13]} Nf6 {[%clk 01:31:14]}
{[%emt 00:00:07]} 3. d4 {[%clk 01:31:31]} {[%emt 00:00:05]} exd4 {[%clk
01:31:36]} {[%emt 00:00:08]} 4. Qxd4 {[%clk 01:31:59]} {[%emt 00:00:01]} Nc6
{[%clk 01:31:55]} {[%emt 00:00:11]} 5. Qd3 {[%clk 01:32:25]} {[%emt 00:00:05]}
Bc5 {[%clk 01:31:38]} {[%emt 00:00:46]} 6. Bf4 {[%clk 01:31:49]} {[%emt
00:01:06]} O-O {[%clk 01:28:12]} {[%emt 00:03:57]} 7. O-O-O {[%clk 01:31:13]}
{[%emt 00:01:05]} Bxf2 {[%clk 01:25:58]} {[%emt 00:02:44]} 8. e5 {[%emt
00:00:21]} Nh5 {[%clk 01:25:52]} {[%emt 00:00:33]} 9. Bd2 {[%clk 01:31:20]}
{[%emt 00:00:35]} Bxg1 {[%clk 01:14:56]} {[%emt 00:11:26]} 10. Rxg1 {[%clk
01:31:29]} {[%emt 00:00:21]} Re8 {[%clk 01:12:55]} {[%emt 00:02:31]} 11. Qf3
{[%clk 00:59:03]} {[%emt 00:32:55]} g6 {[%clk 01:03:04]} {[%emt 00:10:22]} 12.
g4 {[%clk 00:57:18]} {[%emt 00:02:15]} Nxe5 {[%clk 01:03:09]} {[%emt 00:00:25]}
13. Qg2 {[%clk 00:53:48]} {[%emt 00:04:00]} Ng7 {[%clk 00:58:32]} {[%emt
00:05:06]} 14. Ne4 {[%clk 00:52:12]} {[%emt 00:02:06]} Re6 {[%clk 00:47:29]}
{[%emt 00:11:33]} 15. Qf2 {[%clk 00:37:05]} {[%emt 00:15:37]} d5 {[%clk
00:42:08]} {[%emt 00:05:52]} 16. Bg5 {[%clk 00:36:26]} {[%emt 00:01:08]} Qe8
{[%clk 00:40:16]} {[%emt 00:02:22]} 17. Rxd5 {[%clk 00:36:31]} {[%emt
00:00:26]} Bd7 {[%clk 00:39:06]} {[%emt 00:01:40]} 18. Rxe5 {[%clk 00:36:54]}
{[%emt 00:00:07]} Rxe5 {[%clk 00:37:50]} {[%emt 00:01:46]} 19. Nf6+ {[%clk
00:37:17]} {[%emt 00:00:07]} Kh8 {[%clk 00:38:03]} {[%emt 00:00:17]} 20. Nxe8
{[%clk 00:37:27]} {[%emt 00:00:20]} Raxe8 {[%clk 00:38:30]} {[%emt 00:00:02]}
21. Bf6 {[%clk 00:37:27]} {[%emt 00:00:31]} Re1+ {[%clk 00:37:45]} {[%emt
00:01:15]} 22. Kd2 {[%clk 00:37:56]} {[%emt 00:00:01]} R1e6 {[%clk 00:37:55]}
{[%emt 00:00:20]} 23. Bc4 {[%clk 00:37:48]} {[%emt 00:00:37]} Rd6+ {[%clk
00:38:12]} {[%emt 00:00:14]} 24. Kc1 {[%clk 00:38:10]} {[%emt 00:00:07]} 1-0

[Event "Polofinale MCR junioru 2023"]
[Site "Czech Republic"]
[Date "2023.11.13"]
[Round "3.9"]
[White "Kubiczek, Michal"]
[Black "Fizer, Marek"]
[Result "0-1"]
[TimeControl "90 min per 40 moves + 15 min + 30 sec / move from move 1"]
[WhiteFideId "23706996"]
[BlackFideId "391980"]
[WhiteElo "2068"]
[BlackElo "2162"]

1. d4 {[%clk 01:30:55]} {[%emt 00:00:04]} d5 {[%clk 01:30:54]} {[%emt
00:00:06]} 2. c4 {[%clk 01:31:15]} {[%emt 00:00:11]} dxc4 {[%clk 01:31:15]}
{[%emt 00:00:09]} 3. e4 {[%clk 01:31:29]} {[%emt 00:00:16]} b5 {[%clk
01:31:32]} {[%emt 00:00:13]} 4. a4 {[%clk 01:30:02]} {[%emt 00:01:57]} c6
{[%clk 01:31:49]} {[%emt 00:00:13]} 5. axb5 {[%clk 01:29:16]} {[%emt 00:01:16]}
cxb5 {[%clk 01:32:06]} {[%emt 00:00:13]} 6. Nc3 {[%clk 01:28:34]} {[%emt
00:01:11]} Qb6 {[%clk 01:32:23]} {[%emt 00:00:14]} 7. Nd5 {[%clk 01:26:42]}
{[%emt 00:02:22]} Qb7 {[%clk 01:32:10]} {[%emt 00:00:43]} 8. Bf4 {[%clk
01:25:21]} {[%emt 00:01:50]} e5 {[%clk 01:32:15]} {[%emt 00:00:26]} 9. Bxe5
{[%clk 01:18:54]} {[%emt 00:06:57]} Nd7 {[%clk 01:32:30]} {[%emt 00:00:15]} 10.
Bf4 {[%clk 00:56:17]} {[%emt 00:23:07]} Ngf6 {[%clk 01:31:12]} {[%emt
00:01:48]} 11. Nc7+ {[%clk 00:52:51]} {[%emt 00:03:56]} Kd8 {[%clk 01:30:24]}
{[%emt 00:01:17]} 12. Nxa8 {[%clk 00:45:07]} {[%emt 00:08:15]} Qxe4+ {[%clk
01:29:40]} {[%emt 00:01:13]} 13. Ne2 {[%clk 00:44:27]} {[%emt 00:01:11]} Qxa8
{[%clk 01:29:57]} {[%emt 00:00:13]} 14. f3 {[%clk 00:42:22]} {[%emt 00:02:35]}
Nd5 {[%clk 01:28:16]} {[%emt 00:02:11]} 15. Bd2 {[%clk 00:36:17]} {[%emt
00:06:35]} Bd6 {[%clk 01:25:24]} {[%emt 00:03:21]} 16. Kf2 {[%clk 00:34:52]}
{[%emt 00:01:55]} Qb8 {[%clk 01:23:06]} {[%emt 00:02:48]} 17. g3 {[%clk
00:29:38]} {[%emt 00:05:45]} h5 {[%clk 01:21:03]} {[%emt 00:02:33]} 18. Bg2
{[%clk 00:24:47]} {[%emt 00:05:20]} h4 {[%clk 01:13:58]} {[%emt 00:07:36]} 19.
Re1 {[%clk 00:20:42]} {[%emt 00:04:35]} N7f6 {[%clk 01:10:32]} {[%emt
00:03:55]} 20. Ba5+ {[%clk 00:20:20]} {[%emt 00:00:53]} Nb6 {[%clk 01:06:48]}
{[%emt 00:04:14]} 21. Qd2 {[%clk 00:20:07]} {[%emt 00:00:43]} Rh6 {[%clk
00:57:49]} {[%emt 00:09:28]} 22. Qe3 {[%clk 00:14:33]} {[%emt 00:06:03]} Rg6
{[%clk 00:54:17]} {[%emt 00:04:03]} 23. Nf4 {[%clk 00:14:38]} {[%emt 00:00:25]}
hxg3+ {[%clk 00:51:23]} {[%emt 00:03:25]} 24. hxg3 {[%clk 00:14:49]} {[%emt
00:00:18]} Rxg3 {[%clk 00:51:07]} {[%emt 00:00:46]} 25. Qe2 {[%clk 00:10:34]}
{[%emt 00:04:45]} Rg5 {[%clk 00:44:39]} {[%emt 00:06:58]} 26. Bd2 {[%clk
00:10:26]} {[%emt 00:00:39]} Rf5 {[%clk 00:40:16]} {[%emt 00:04:53]} 27. Bh3
{[%clk 00:05:43]} {[%emt 00:05:13]} Rxf4 {[%clk 00:37:53]} {[%emt 00:02:52]} 28.
Bxf4 {[%clk 00:06:12]} {[%emt 00:00:01]} Bxh3 {[%clk 00:38:03]} {[%emt
00:00:21]} 29. Bxd6 {[%clk 00:04:05]} {[%emt 00:02:36]} Qxd6 {[%clk 00:37:59]}
{[%emt 00:00:34]} 30. Rxa7 {[%clk 00:04:34]} {[%emt 00:00:02]} Qxd4+ {[%clk
00:31:41]} {[%emt 00:06:48]} 31. Qe3 {[%clk 00:04:49]} {[%emt 00:00:14]} Qxe3+
32. Kxe3 {[%clk 00:05:17]} Nfd7 {[%clk 00:30:34]} {[%emt 00:01:48]} 33. Ra5
{[%clk 00:04:26]} {[%emt 00:01:20]} b4 {[%clk 00:29:39]} {[%emt 00:01:25]} 34.
Rb5 {[%clk 00:03:21]} {[%emt 00:01:36]} Be6 {[%clk 00:28:12]} {[%emt 00:01:57]}
35. Kd4 {[%clk 00:03:36]} {[%emt 00:00:14]} b3 {[%clk 00:27:36]} {[%emt
00:01:06]} 36. f4 {[%clk 00:04:04]} {[%emt 00:00:02]} g6 {[%clk 00:27:56]}
{[%emt 00:00:10]} 37. Rg5 {[%clk 00:03:27]} {[%emt 00:01:08]} Bf5 {[%clk
00:24:06]} {[%emt 00:04:19]} 38. Re2 {[%clk 00:02:53]} {[%emt 00:01:04]} Kc7
{[%clk 00:19:16]} {[%emt 00:05:20]} 39. Re7 {[%clk 00:03:15]} {[%emt 00:00:08]}
f6 {[%clk 00:18:30]} {[%emt 00:01:17]} 40. Rg1 {[%clk 00:02:40]} {[%emt
00:01:04]} Kd6 {[%clk 00:17:59]} {[%emt 00:01:01]} 41. Rf7 {[%clk 00:02:14]}
{[%emt 00:00:56]} Na4 {[%clk 00:16:09]} {[%emt 00:02:20]} 42. Rg2 {[%clk
00:15:13]} {[%emt 00:03:01]} c3 {[%clk 00:31:03]} {[%emt 00:01:06]} 43. Rxd7+
{[%clk 00:14:03]} {[%emt 00:01:41]} Kxd7 {[%clk 00:29:42]} {[%emt 00:01:51]} 44.
Kc4 {[%clk 00:13:10]} {[%emt 00:01:22]} cxb2 {[%clk 00:29:54]} {[%emt
00:00:18]} 0-1

[Event "Polofinale MCR junioru 2023"]
[Site "Czech Republic"]
[Date "2023.11.13"]
[Round "3.10"]
[White "Skypala, Ondrej"]
[Black "Vlcek, Vojtech"]
[Result "1-0"]
[TimeControl "90 min per 40 moves + 15 min + 30 sec / move from move 1"]
[WhiteFideId "366285"]
[BlackFideId "23728647"]
[WhiteElo "2159"]
[BlackElo "1703"]

1. c4 {[%clk 01:28:29]} {[%emt 00:02:23]} e5 {[%clk 01:30:48]} {[%emt
00:00:20]} 2. g3 {[%clk 01:28:54]} {[%emt 00:00:04]} Nc6 {[%clk 01:30:56]}
{[%emt 00:00:21]} 3. Bg2 {[%clk 01:29:18]} {[%emt 00:00:07]} Bc5 {[%clk
01:30:56]} {[%emt 00:00:30]} 4. Nc3 {[%clk 01:29:44]} {[%emt 00:00:05]} a6
{[%clk 01:31:16]} {[%emt 00:00:10]} 5. Nf3 {[%clk 01:29:20]} {[%emt 00:00:54]}
d6 {[%clk 01:30:47]} {[%emt 00:00:58]} 6. O-O {[%clk 01:29:44]} {[%emt
00:00:07]} Nge7 {[%clk 01:31:06]} {[%emt 00:00:11]} 7. e3 {[%clk 01:23:43]}
{[%emt 00:06:31]} Ba7 {[%clk 01:26:17]} {[%emt 00:05:19]} 8. Rb1 {[%clk
01:16:20]} {[%emt 00:07:53]} O-O {[%clk 01:17:14]} {[%emt 00:09:32]} 9. b4
{[%clk 01:16:42]} {[%emt 00:00:09]} Bg4 {[%clk 01:10:01]} {[%emt 00:07:42]} 10.
h3 {[%clk 01:17:03]} {[%emt 00:00:10]} Bh5 {[%clk 01:10:13]} {[%emt 00:00:18]}
11. d3 {[%clk 01:13:57]} {[%emt 00:03:36]} f5 {[%clk 01:04:35]} {[%emt
00:06:08]} 12. Qb3 {[%clk 01:09:58]} {[%emt 00:04:29]} Bf7 {[%clk 01:03:43]}
{[%emt 00:01:21]} 13. Ng5 {[%clk 01:10:23]} {[%emt 00:00:05]} Rb8 {[%clk
01:00:26]} {[%emt 00:03:48]} 14. Nxf7 {[%clk 01:07:12]} {[%emt 00:03:41]} Rxf7
{[%clk 01:00:52]} {[%emt 00:00:04]} 15. a4 {[%clk 01:04:43]} {[%emt 00:02:59]}
a5 {[%clk 00:55:49]} {[%emt 00:05:32]} 16. bxa5 {[%clk 01:01:06]} {[%emt
00:04:09]} Nxa5 {[%clk 00:56:03]} {[%emt 00:00:14]} 17. Qc2 {[%clk 01:01:21]}
{[%emt 00:00:15]} Kh8 {[%clk 00:55:14]} {[%emt 00:01:19]} 18. Bd2 {[%clk
00:56:03]} {[%emt 00:05:49]} Nac6 {[%clk 00:47:15]} {[%emt 00:08:29]} 19. Nd5
{[%clk 00:53:41]} {[%emt 00:02:51]} Nxd5 {[%clk 00:44:49]} {[%emt 00:02:56]} 20.
Bxd5 {[%clk 00:54:02]} {[%emt 00:00:09]} Rf8 {[%clk 00:45:15]} {[%emt
00:00:05]} 21. a5 {[%clk 00:54:25]} {[%emt 00:00:07]} Qd7 {[%clk 00:45:30]}
{[%emt 00:00:15]} 22. Qa4 {[%clk 00:52:54]} {[%emt 00:02:02]} f4 {[%clk
00:40:50]} {[%emt 00:05:08]} 23. Kh2 {[%clk 00:52:47]} {[%emt 00:00:37]} Qf5
{[%clk 00:40:14]} {[%emt 00:01:06]} 24. Be4 {[%clk 00:35:05]} {[%emt 00:18:13]}
fxg3+ {[%clk 00:38:23]} {[%emt 00:02:21]} 25. Kxg3 {[%clk 00:35:24]} {[%emt
00:00:11]} Qg5+ {[%clk 00:38:43]} {[%emt 00:00:10]} 26. Kh2 {[%clk 00:35:45]}
{[%emt 00:00:08]} Qh4 {[%clk 00:38:32]} {[%emt 00:00:40]} 27. f3 {[%clk
00:33:12]} {[%emt 00:03:05]} Ne7 {[%clk 00:37:52]} {[%emt 00:01:10]} 28. Qd7
{[%clk 00:33:03]} {[%emt 00:00:39]} b6 {[%clk 00:21:47]} {[%emt 00:16:35]} 29.
a6 {[%clk 00:32:19]} {[%emt 00:01:15]} b5 {[%clk 00:20:53]} {[%emt 00:01:22]}
30. Rg1 {[%clk 00:17:18]} {[%emt 00:15:31]} bxc4 {[%clk 00:21:03]} {[%emt
00:00:21]} 31. Rxb8 {[%clk 00:17:33]} {[%emt 00:00:15]} Rxb8 {[%clk 00:21:24]}
{[%emt 00:00:10]} 32. Rg4 {[%clk 00:17:03]} {[%emt 00:01:00]} Qf2+ {[%clk
00:21:41]} {[%emt 00:00:13]} 33. Rg2 {[%clk 00:17:26]} {[%emt 00:00:06]} Qh4
{[%clk 00:21:28]} {[%emt 00:00:42]} 34. Qxc7 {[%clk 00:17:34]} {[%emt
00:00:23]} Rb2 {[%clk 00:18:15]} {[%emt 00:03:42]} 35. Qd8+ {[%clk 00:17:15]}
{[%emt 00:00:49]} 1-0